fUSD/lending_fUSD_20250223
["ID","MTS","AMOUNT","RATE_DAILY","PERIOD"]
[354145110,1740287433372,-502.54879005,0.00010958,2]
[354145112,1740287433383,-269.896464,0.00010958,2]
[354145114,1740287433393,-504.73707931,0.00010958,2]
[354145116,1740287433402,-500.0,0.00010958,2]
[354145118,1740287433412,-503.04849199,0.00010958,2]
[354145120,1740287433421,-500.0,0.00010958,2]
[354145122,1740287433430,-289.523546,0.00010958,2]
[354145124,1740287433439,-501.06718217,0.00010958,2]
[354145125,1740287433449,-269.86503516,0.00010958,2]
[354145127,1740287433459,-160.335451,0.00010958,2]
[354145130,1740287433469,-500.0,0.00010958,2]
[354145132,1740287433478,-502.14442279,0.00010958,2]
[354145133,1740287433487,-153.132805,0.00010958,2]
[354145135,1740287433497,-500.0,0.00010958,2]
[354145138,1740287433507,-501.43420229,0.00010958,2]
[354145140,1740287433517,-506.21954345,0.00010958,2]
[354145142,1740287433527,-500.0,0.00010958,2]
[354145144,1740287433536,-501.73302316,0.00010958,2]
[354145146,1740287433546,-586.51939099,0.00010958,2]
[354145148,1740287433556,-505.28169758,0.00010958,2]
[354145150,1740287433566,-501.85210195,0.00010958,2]
[354145152,1740287433576,-507.34471339,0.00010958,2]
[354145154,1740287433585,-506.62056463,0.00010958,2]
[354145156,1740287433594,-516.88984108,0.00010958,2]
[354145157,1740287433603,-633.56739826,0.00010958,2]
[354145160,1740287433613,-500.0,0.00010958,2]
[354145162,1740287433623,-500.0,0.00010958,2]
[354145163,1740287433633,-505.55255608,0.00010958,2]
[354145165,1740287433643,-513.59458812,0.00010958,2]
[354145167,1740287433652,-500.0,0.00010958,2]
[354145169,1740287433661,-504.25028505,0.00010958,2]
[354145171,1740287433671,-500.0,0.00010958,2]
[354145173,1740287433680,-500.0,0.00010958,2]
[354145175,1740287433690,-500.0,0.00010958,2]
[354145177,1740287433699,-499.89783077,0.00010958,2]
[354145179,1740287433709,-500.0,0.00010958,2]
[354145181,1740287433718,-500.0,0.00010958,2]
[354145183,1740287433728,-510.66876089,0.00010958,2]
[354145185,1740287433738,-500.0,0.00010958,2]
[354145187,1740287433748,-423.66863505,0.00010958,2]
[354145189,1740287433758,-500.0,0.00010958,2]
[354145191,1740287433768,-513.17710501,0.00010958,2]
[354145205,1740287433965,-500.0,0.00010958,2]
[354145206,1740287433976,-307.38300812,0.00010958,2]
[354145207,1740287433985,-504.41537982,0.00010958,2]
[354145208,1740287433994,-503.97628541,0.00010958,2]
[354145209,1740287434007,-500.0,0.00010958,2]
[354145210,1740287434017,-500.0,0.00010958,2]
[354145211,1740287434028,-625.05791245,0.00010958,2]
[354145212,1740287434037,-500.0,0.00010958,2]
[354145213,1740287434048,-502.7689485,0.00010958,2]
[354145214,1740287434057,-500.0,0.00010958,2]
[354145215,1740287434066,-500.0,0.00010958,2]
[354145216,1740287434075,-500.0,0.00010958,2]
[354145217,1740287434086,-500.0,0.00010958,2]
[354145218,1740287434097,-317.69416486,0.00010958,2]
[354145219,1740287434107,-500.0,0.00010958,2]
[354145220,1740287434116,-508.93774924,0.00010958,2]
[354145221,1740287434125,-500.0,0.00010958,2]
[354145222,1740287434135,-502.90075804,0.00010958,2]
[354145223,1740287434144,-500.0,0.00010958,2]
[354145224,1740287434154,-527.00555648,0.00010958,2]
[354145225,1740287434163,-515.18079949,0.00010958,2]
[354145226,1740287434174,-500.0,0.00010958,2]
[354145227,1740287434183,-500.0,0.00010958,2]
[354145228,1740287434192,-500.0,0.00010958,2]
[354145229,1740287434201,-500.0,0.00010958,2]
[354145230,1740287434211,-500.0,0.00010958,2]
[354145231,1740287434221,-500.0,0.00010958,2]
[354145232,1740287434230,-500.0,0.00010958,2]
[354145233,1740287434239,-500.0,0.00010958,2]
[354145234,1740287434248,-500.0,0.00010958,2]
[354145235,1740287434257,-500.0,0.00010958,2]
[354145236,1740287434267,-502.99354569,0.00010958,2]
[354145237,1740287434276,-500.0,0.00010958,2]
[354145238,1740287434286,-502.64310175,0.00010958,2]
[354145239,1740287434296,-502.957514,0.00010958,2]
[354145240,1740287434305,-530.12,0.00010958,2]
[354145241,1740287434315,-500.0,0.00010958,2]
[354145242,1740287434324,-500.0,0.00010958,2]
[354145243,1740287434333,-500.0,0.00010958,2]
[354145244,1740287434342,-500.0,0.00010958,2]
[354145245,1740287434352,-500.0,0.00010958,2]
[354145246,1740287434361,-500.0,0.00010958,2]
[354145247,1740287434370,-500.0,0.00010958,2]
[354145248,1740287434380,-500.0,0.00010958,2]
[354145249,1740287434389,-500.0,0.00010958,2]
[354145250,1740287434398,-500.0,0.00010958,2]
[354145251,1740287434407,-500.0,0.00010958,2]
[354145252,1740287434416,-500.0,0.00010958,2]
[354145253,1740287434426,-525.29789885,0.00010958,2]
[354145254,1740287434435,-500.0,0.00010958,2]
[354145255,1740287434444,-500.0,0.00010958,2]
[354145256,1740287434453,-504.56610621,0.00010958,2]
[354145257,1740287434463,-500.0,0.00010958,2]
[354145258,1740287434472,-505.49306534,0.00010958,2]
[354145259,1740287434481,-500.0,0.00010958,2]
[354145260,1740287434490,-500.0,0.00010958,2]
[354145261,1740287434499,-500.0,0.00010958,2]
[354145262,1740287434508,-500.0,0.00010958,2]
[354145263,1740287434517,-500.0,0.00010958,2]
[354145264,1740287434527,-500.0,0.00010958,2]
[354145265,1740287434536,-500.0,0.00010958,2]
[354145266,1740287434545,-501.00530908,0.00010958,2]
[354145267,1740287434554,-500.0,0.00010958,2]
[354145268,1740287434564,-508.01524979,0.00010958,2]
[354145269,1740287434573,-500.0,0.00010958,2]
[354145270,1740287434583,-511.21594521,0.00010958,2]
[354145271,1740287434592,-500.0,0.00010958,2]
[354145272,1740287434601,-500.0,0.00010958,2]
[354145273,1740287434610,-500.0,0.00010958,2]
[354145274,1740287434619,-501.09290484,0.00010958,2]
[354145275,1740287434630,-506.05068084,0.00010958,2]
[354145276,1740287434639,-500.0,0.00010958,2]
[354145277,1740287434649,-500.0,0.00010958,2]
[354145278,1740287434658,-535.75600546,0.00010958,2]
[354145279,1740287434667,-500.0,0.00010958,2]
[354145280,1740287434676,-500.0,0.00010958,2]
[354145281,1740287434686,-500.0,0.00010958,2]
[354145282,1740287434695,-500.0,0.00010958,2]
[354145283,1740287434704,-500.0,0.00010958,2]
[354145284,1740287434714,-500.0,0.00010958,2]
[354145285,1740287434723,-513.4889981,0.00010958,2]
[354145286,1740287434732,-500.0,0.00010958,2]
[354145287,1740287434742,-500.0,0.00010958,2]
[354145288,1740287434751,-514.04321334,0.00010958,2]
[354145289,1740287434760,-500.0,0.00010958,2]
[354145290,1740287434769,-500.0,0.00010958,2]
[354145291,1740287434779,-500.0,0.00010958,2]
[354145292,1740287434788,-500.0,0.00010958,2]
[354145293,1740287434797,-500.0,0.00010958,2]
[354145294,1740287434806,-523.59854416,0.00010958,2]
[354145295,1740287434815,-500.0,0.00010958,2]
[354145296,1740287434825,-500.0,0.00010958,2]
[354145297,1740287434834,-500.0,0.00010958,2]
[354145298,1740287434843,-500.0,0.00010958,2]
[354145299,1740287434852,-503.73024381,0.00010958,2]
[354145300,1740287434861,-500.0,0.00010958,2]
[354145301,1740287434870,-500.0,0.00010958,2]
[354145302,1740287434879,-500.0,0.00010958,2]
[354145303,1740287434888,-500.0,0.00010958,2]
[354145304,1740287434898,-500.0,0.00010958,2]
[354145305,1740287434907,-500.0,0.00010958,2]
[354145306,1740287434916,-614.43238217,0.00010958,2]
[354145307,1740287434925,-500.0,0.00010958,2]
[354145308,1740287434935,-500.0,0.00010958,2]
[354145309,1740287434943,-500.0,0.00010958,2]
[354145310,1740287434952,-498.0971562,0.00010958,2]
[354145311,1740287434961,-502.94134183,0.00010958,2]
[354145312,1740287434970,-500.0,0.00010958,2]
[354145313,1740287434980,-500.0,0.00010958,2]
[354145314,1740287434989,-503.58976977,0.00010958,2]
[354145315,1740287434998,-500.0,0.00010958,2]
[354145316,1740287435011,-500.0,0.00010958,2]
[354145317,1740287435020,-504.43310397,0.00010958,2]
[354145318,1740287435029,-500.0,0.00010958,2]
[354145319,1740287435038,-504.80995946,0.00010958,2]
[354145320,1740287435049,-500.0,0.00010958,2]
[354145321,1740287435058,-508.88455857,0.00010958,2]
[354145322,1740287435067,-500.0,0.00010958,2]
[354145323,1740287435076,-500.0,0.00010958,2]
[354145324,1740287435086,-505.2099241,0.00010958,2]
[354145325,1740287435096,-150.90187802,0.00010958,2]
[354145326,1740287435105,-479.89381005,0.00010958,2]
[354145327,1740287435115,-500.0,0.00010958,2]
[354145328,1740287435123,-504.12497316,0.00010958,2]
[354145329,1740287435132,-500.0,0.00010958,2]
[354145330,1740287435142,-3939.62472458,0.00010958,2]
[354145331,1740287435151,-500.0,0.00010958,2]
[354145332,1740287435160,-500.0,0.00010958,2]
[354145333,1740287435169,-500.0,0.00010958,2]
[354145334,1740287435179,-500.0,0.00010958,2]
[354145335,1740287435187,-500.0,0.00010958,2]
[354145336,1740287435196,-500.0,0.00010958,2]
[354145337,1740287435205,-500.0,0.00010958,2]
[354145338,1740287435214,-500.0,0.00010958,2]
[354145339,1740287435223,-500.0,0.00010958,2]
[354145340,1740287435232,-500.0,0.00010958,2]
[354145341,1740287435241,-503.92061052,0.00010958,2]
[354145342,1740287435251,-500.0,0.00010958,2]
[354145343,1740287435261,-500.0,0.00010958,2]
[354145344,1740287435270,-500.0,0.00010958,2]
[354145345,1740287435279,-500.0,0.00010958,2]
[354145346,1740287435288,-500.0,0.00010958,2]
[354145347,1740287435297,-150.156393,0.00010958,2]
[354145348,1740287435306,-150.156393,0.00010958,2]
[354145349,1740287435315,-500.0,0.00010958,2]
[354145350,1740287435324,-500.0,0.00010958,2]
[354145351,1740287435333,-500.0,0.00010958,2]
[354145352,1740287435342,-500.0,0.00010958,2]
[354145353,1740287435351,-500.0,0.00010958,2]
[354145354,1740287435360,-500.0,0.00010958,2]
[354145355,1740287435369,-500.0,0.00010958,2]
[354145356,1740287435378,-500.0,0.00010958,2]
[354145357,1740287435387,-500.0,0.00010958,2]
[354145358,1740287435397,-504.38785463,0.00010958,2]
[354145359,1740287435406,-500.0,0.00010958,2]
[354145360,1740287435414,-500.0,0.00010958,2]
[354145361,1740287435423,-500.0,0.00010958,2]
[354145362,1740287435432,-500.0,0.00010958,2]
[354145363,1740287435441,-504.11448552,0.00010958,2]
[354145364,1740287435450,-501.5307249,0.00010958,2]
[354145365,1740287435459,-500.0,0.00010958,2]
[354145366,1740287435468,-500.0,0.00010958,2]
[354145367,1740287435477,-500.0,0.00010958,2]
[354145368,1740287435486,-500.0,0.00010958,2]
[354145369,1740287435495,-500.0,0.00010958,2]
[354145370,1740287435503,-500.0,0.00010958,2]
[354145371,1740287435513,-500.0,0.00010958,2]
[354145372,1740287435522,-500.0,0.00010958,2]
[354145373,1740287435530,-500.0,0.00010958,2]
[354145374,1740287435539,-501.4636779,0.00010958,2]
[354145375,1740287435548,-500.0,0.00010958,2]
[354145376,1740287435558,-500.0,0.00010958,2]
[354145377,1740287435567,-502.97316412,0.00010958,2]
[354145378,1740287435575,-501.55150039,0.00010958,2]
[354145379,1740287435585,-500.0,0.00010958,2]
[354145380,1740287435594,-500.93390633,0.00010958,2]
[354145381,1740287435603,-500.92198102,0.00010958,2]
[354145382,1740287435612,-500.0,0.00010958,2]
[354145383,1740287435622,-500.0,0.00010958,2]
[354145384,1740287435631,-158.490081,0.00010958,2]
[354145385,1740287435640,-502.66134318,0.00010958,2]
[354145386,1740287435649,-520.72406029,0.00010958,2]
[354145387,1740287435658,-603.68693304,0.00010958,2]
[354145388,1740287435667,-500.0,0.00010958,2]
[354145389,1740287435675,-500.0,0.00010958,2]
[354145390,1740287435684,-500.0,0.00010958,2]
[354145391,1740287435694,-500.0,0.00010958,2]
[354145392,1740287435703,-511.14718837,0.00010958,2]
[354145393,1740287435711,-507.33813577,0.00010958,2]
[354145394,1740287435720,-500.0,0.00010958,2]
[354145395,1740287435729,-500.0,0.00010958,2]
[354145396,1740287435738,-500.0,0.00010958,2]
[354145397,1740287435747,-502.00189685,0.00010958,2]
[354145398,1740287435756,-500.0,0.00010958,2]
[354145399,1740287435766,-500.0,0.00010958,2]
[354145400,1740287435775,-500.0,0.00010958,2]
[354145401,1740287435784,-500.0,0.00010958,2]
[354145402,1740287435794,-500.0,0.00010958,2]
[354145403,1740287435803,-514.97153509,0.00010958,2]
[354145404,1740287435813,-500.0,0.00010958,2]
[354145405,1740287435822,-501.39905454,0.00010958,2]
[354145406,1740287435831,-500.0,0.00010958,2]
[354145407,1740287435841,-500.0,0.00010958,2]
[354145408,1740287435850,-502.48790745,0.00010958,2]
[354145409,1740287435860,-500.0,0.00010958,2]
[354145410,1740287435869,-500.0,0.00010958,2]
[354145411,1740287435878,-508.99769979,0.00010958,2]
[354145412,1740287435888,-500.0,0.00010958,2]
[354145413,1740287435897,-500.0,0.00010958,2]
[354145414,1740287435906,-500.0,0.00010958,2]
[354145415,1740287435915,-213.48382831,0.00010958,2]
[354145416,1740287436102,-286.51617169,0.00010958,2]
[354145417,1740287436112,-500.0,0.00010958,2]
[354145418,1740287436121,-500.0,0.00010958,2]
[354145419,1740287436130,-500.0,0.00010958,2]
[354145420,1740287436139,-502.74025814,0.00010958,2]
[354145421,1740287436149,-500.0,0.00010958,2]
[354145422,1740287436159,-500.0,0.00010958,2]
[354145423,1740287436169,-505.43784587,0.00010958,2]
[354145424,1740287436178,-504.8129882,0.00010958,2]
[354145425,1740287436188,-500.0,0.00010958,2]
[354145426,1740287436197,-500.0,0.00010958,2]
[354145427,1740287436207,-640.56802281,0.00010958,2]
[354145428,1740287436216,-500.0,0.00010958,2]
[354145429,1740287436226,-500.0,0.00010958,2]
[354145430,1740287436235,-509.74676155,0.00010958,2]
[354145431,1740287436245,-500.0,0.00010958,2]
[354145432,1740287436255,-159.219542,0.00010958,2]
[354145433,1740287436265,-159.219542,0.00010958,2]
[354145434,1740287436274,-609.07995358,0.00010958,2]
[354145435,1740287436283,-502.88705117,0.00010958,2]
[354145436,1740287436293,-500.0,0.00010958,2]
[354145437,1740287436303,-500.0,0.00010958,2]
[354145438,1740287436312,-502.9353976,0.00010958,2]
[354145439,1740287436321,-506.62429801,0.00010958,2]
[354145440,1740287436331,-500.0,0.00010958,2]
[354145441,1740287436340,-500.0,0.00010958,2]
[354145442,1740287436349,-500.0,0.00010958,2]
[354145443,1740287436359,-500.0,0.00010958,2]
[354145444,1740287436368,-501.38117831,0.00010958,2]
[354145445,1740287436378,-500.0,0.00010958,2]
[354145446,1740287436388,-500.0,0.00010958,2]
[354145447,1740287436398,-500.0,0.00010958,2]
[354145448,1740287436407,-500.0,0.00010958,2]
[354145449,1740287436416,-504.22995583,0.00010958,2]
[354145450,1740287436426,-505.70608805,0.00010958,2]
[354145451,1740287436435,-500.0,0.00010958,2]
[354145452,1740287436444,-500.0,0.00010958,2]
[354145453,1740287436453,-500.0,0.00010958,2]
[354145454,1740287436463,-500.0,0.00010958,2]
[354145455,1740287436473,-500.0,0.00010958,2]
[354145456,1740287436483,-500.0,0.00010958,2]
[354145457,1740287436491,-501.48006583,0.00010958,2]
[354145458,1740287436500,-500.0,0.00010958,2]
[354145459,1740287436510,-500.0,0.00010958,2]
[354145460,1740287436519,-500.0,0.00010958,2]
[354145461,1740287436528,-500.0,0.00010958,2]
[354145462,1740287436538,-500.0,0.00010958,2]
[354145463,1740287436547,-500.98485524,0.00010958,2]
[354145464,1740287436557,-503.26693099,0.00010958,2]
[354145465,1740287436567,-500.0,0.00010958,2]
[354145466,1740287436576,-500.0,0.00010958,2]
[354145467,1740287436586,-500.0,0.00010958,2]
[354145468,1740287436595,-500.0,0.00010958,2]
[354145469,1740287436605,-500.0,0.00010958,2]
[354145470,1740287436614,-500.0,0.00010958,2]
[354145471,1740287436624,-501.58827471,0.00010958,2]
[354145472,1740287436633,-500.0,0.00010958,2]
[354145473,1740287436643,-500.0,0.00010958,2]
[354145474,1740287436652,-510.48296347,0.00010958,2]
[354145475,1740287436661,-500.0,0.00010958,2]
[354145476,1740287436671,-500.0,0.00010958,2]
[354145477,1740287436680,-500.0,0.00010958,2]
[354145478,1740287436689,-501.00227032,0.00010958,2]
[354145479,1740287436698,-503.35115606,0.00010958,2]
[354145480,1740287436708,-500.0,0.00010958,2]
[354145481,1740287436717,-500.0,0.00010958,2]
[354145482,1740287436727,-649.09328167,0.00010958,2]
[354145483,1740287436736,-500.0,0.00010958,2]
[354145484,1740287436746,-524.02399513,0.00010958,2]
[354145485,1740287436755,-500.0,0.00010958,2]
[354145486,1740287436765,-500.0,0.00010958,2]
[354145487,1740287436774,-501.99370406,0.00010958,2]
[354145488,1740287436784,-500.0,0.00010958,2]
[354145489,1740287436794,-557.47052335,0.00010958,2]
[354145490,1740287436804,-500.0,0.00010958,2]
[354145491,1740287436813,-500.0,0.00010958,2]
[354145492,1740287436822,-502.29017994,0.00010958,2]
[354145493,1740287436832,-508.5425751,0.00010958,2]
[354145494,1740287436841,-393.34061974,0.00010958,2]
[354145495,1740287436851,-500.0,0.00010958,2]
[354145496,1740287436860,-510.57755821,0.00010958,2]
[354145497,1740287436870,-500.0,0.00010958,2]
[354145498,1740287436879,-500.0,0.00010958,2]
[354145499,1740287436888,-500.0,0.00010958,2]
[354145500,1740287436898,-550.9687552,0.00010958,2]
[354145501,1740287436907,-500.0,0.00010958,2]
[354145502,1740287436916,-508.93862129,0.00010958,2]
[354145503,1740287436925,-505.13898236,0.00010958,2]
[354145504,1740287436935,-500.0,0.00010958,2]
[354145505,1740287436944,-500.0,0.00010958,2]
[354145506,1740287436954,-500.0,0.00010958,2]
[354145507,1740287436963,-500.0,0.00010958,2]
[354145508,1740287436972,-500.0,0.00010958,2]
[354145509,1740287436981,-520.12952725,0.00010958,2]
[354145510,1740287436990,-500.0,0.00010958,2]
[354145511,1740287436999,-501.90353083,0.00010958,2]
[354145512,1740287437014,-500.0,0.00010958,2]
[354145513,1740287437024,-500.0,0.00010958,2]
[354145514,1740287437033,-508.25161681,0.00010958,2]
[354145515,1740287437042,-500.0,0.00010958,2]
[354145516,1740287437054,-500.0,0.00010958,2]
[354145517,1740287437219,-500.0,0.00010958,2]
[354145518,1740287437228,-500.0,0.00010958,2]
[354145519,1740287437238,-500.0,0.00010958,2]
[354145520,1740287437248,-500.0,0.00010958,2]
[354145521,1740287437257,-500.0,0.00010958,2]
[354145522,1740287437267,-503.22215574,0.00010958,2]
[354145523,1740287437277,-500.0,0.00010958,2]
[354145524,1740287437286,-506.00909102,0.00010958,2]
[354145525,1740287437296,-500.0,0.00010958,2]
[354145526,1740287437306,-500.0,0.00010958,2]
[354145527,1740287437315,-500.0,0.00010958,2]
[354145528,1740287437324,-517.69737118,0.00010958,2]
[354145529,1740287437334,-500.0,0.00010958,2]
[354145530,1740287437344,-505.17799944,0.00010958,2]
[354145531,1740287437353,-500.0,0.00010958,2]
[354145532,1740287437363,-500.0,0.00010958,2]
[354145533,1740287437372,-500.0,0.00010958,2]
[354145534,1740287437381,-500.0,0.00010958,2]
[354145535,1740287437391,-508.84233293,0.00010958,2]
[354145536,1740287437400,-500.0,0.00010958,2]
[354145537,1740287437409,-500.0,0.00010958,2]
[354145538,1740287437419,-503.92462931,0.00010958,2]
[354145539,1740287437429,-500.0,0.00010958,2]
[354145540,1740287437438,-500.0,0.00010958,2]
[354145541,1740287437447,-505.50126934,0.00010958,2]
[354145542,1740287437458,-512.74243153,0.00010958,2]
[354145543,1740287437470,-500.0,0.00010958,2]
[354145544,1740287437479,-500.0,0.00010958,2]
[354145545,1740287437489,-503.7629372,0.00010958,2]
[354145546,1740287437499,-500.0,0.00010958,2]
[354145547,1740287437508,-501.43424327,0.00010958,2]
[354145548,1740287437517,-500.0,0.00010958,2]
[354145549,1740287437527,-500.0,0.00010958,2]
[354145550,1740287437536,-582.93737234,0.00010958,2]
[354145551,1740287437545,-500.0,0.00010958,2]
[354145552,1740287437555,-582.80439613,0.00010958,2]
[354145553,1740287437565,-503.92789584,0.00010958,2]
[354145554,1740287437574,-500.0,0.00010958,2]
[354145555,1740287437584,-501.81599858,0.00010958,2]
[354145556,1740287437593,-544.2651295,0.00010958,2]
[354145557,1740287437603,-507.03515748,0.00010958,2]
[354145558,1740287437612,-500.0,0.00010958,2]
[354145559,1740287437622,-500.0,0.00010958,2]
[354145560,1740287437631,-500.0,0.00010958,2]
[354145561,1740287437641,-501.65726308,0.00010958,2]
[354145562,1740287437650,-500.0,0.00010958,2]
[354145563,1740287437659,-504.41493266,0.00010958,2]
[354145564,1740287437668,-509.24239346,0.00010958,2]
[354145565,1740287437677,-512.09644491,0.00010958,2]
[354145566,1740287437687,-500.0,0.00010958,2]
[354145567,1740287437696,-500.0,0.00010958,2]
[354145568,1740287437706,-505.10824423,0.00010958,2]
[354145569,1740287437715,-501.78413671,0.00010958,2]
[354145570,1740287437724,-500.0,0.00010958,2]
[354145571,1740287437734,-507.03774627,0.00010958,2]
[354145572,1740287437743,-500.0,0.00010958,2]
[354145573,1740287437752,-500.0,0.00010958,2]
[354145574,1740287437763,-501.66940773,0.00010958,2]
[354145575,1740287437772,-499.64424263,0.00010958,2]
[354145576,1740287437781,-500.0,0.00010958,2]
[354145577,1740287437791,-506.59401273,0.00010958,2]
[354145578,1740287437800,-500.0,0.00010958,2]
[354145579,1740287437809,-500.0,0.00010958,2]
[354145580,1740287437819,-624.85505312,0.00010958,2]
[354145581,1740287437828,-500.0,0.00010958,2]
[354145582,1740287437837,-500.0,0.00010958,2]
[354145583,1740287437847,-509.2737756,0.00010958,2]
[354145585,1740287437857,-507.51339585,0.00010958,2]
[354145587,1740287437866,-500.0,0.00010958,2]
[354145589,1740287437875,-500.0,0.00010958,2]
[354145590,1740287437884,-500.0,0.00010958,2]
[354145591,1740287437893,-500.0,0.00010958,2]
[354145592,1740287437902,-500.0,0.00010958,2]
[354145593,1740287437911,-500.0,0.00010958,2]
[354145594,1740287437921,-511.34203764,0.00010958,2]
[354145595,1740287437930,-500.0,0.00010958,2]
[354145596,1740287437939,-528.49645611,0.00010958,2]
[354145597,1740287437948,-502.03752273,0.00010958,2]
[354145598,1740287437957,-500.0,0.00010958,2]
[354145599,1740287437967,-457.0794455,0.00010958,2]
[354145600,1740287437976,-500.0,0.00010958,2]
[354145601,1740287437985,-506.26259464,0.00010958,2]
[354145602,1740287437994,-617.68338092,0.00010958,2]
[354145603,1740287438004,-505.64244144,0.00010958,2]
[354145604,1740287438015,-500.0,0.00010958,2]
[354145605,1740287438024,-501.42127241,0.00010958,2]
[354145606,1740287438033,-506.11686859,0.00010958,2]
[354145607,1740287438042,-500.0,0.00010958,2]
[354145608,1740287438050,-500.0,0.00010958,2]
[354145609,1740287438059,-501.61346941,0.00010958,2]
[354145610,1740287438068,-505.4748434,0.00010958,2]
[354145611,1740287438077,-500.0,0.00010958,2]
[354145612,1740287438087,-494.82254016,0.00010958,2]
[354145613,1740287438096,-500.0,0.00010958,2]
[354145614,1740287438105,-507.07904997,0.00010958,2]
[354145615,1740287438114,-500.0,0.00010958,2]
[354145616,1740287438123,-501.86943398,0.00010958,2]
[354145617,1740287438132,-500.0,0.00010958,2]
[354145618,1740287438141,-500.0,0.00010958,2]
[354145619,1740287438150,-500.0,0.00010958,2]
[354145620,1740287438159,-330.9485244,0.00010958,2]
[354145621,1740287438168,-500.0,0.00010958,2]
[354145622,1740287438177,-500.0,0.00010958,2]
[354145623,1740287438186,-502.05340265,0.00010958,2]
[354145624,1740287438195,-500.0,0.00010958,2]
[354145625,1740287438203,-500.0,0.00010958,2]
[354145626,1740287438212,-505.44154779,0.00010958,2]
[354145627,1740287438221,-500.6210223,0.00010958,2]
[354145628,1740287438231,-503.98139743,0.00010958,2]
[354145629,1740287438239,-500.0,0.00010958,2]
[354145630,1740287438248,-504.02817814,0.00010958,2]
[354145631,1740287438257,-503.73373427,0.00010958,2]
[354145632,1740287438267,-500.0,0.00010958,2]
[354145633,1740287438276,-500.0,0.00010958,2]
[354145634,1740287438285,-503.45256294,0.00010958,2]
[354145635,1740287438294,-500.0,0.00010958,2]
[354145636,1740287438303,-440.70812974,0.00010958,2]
[354145637,1740287438312,-500.0,0.00010958,2]
[354145638,1740287438320,-500.0,0.00010958,2]
[354145639,1740287438330,-503.28351364,0.00010958,2]
[354145640,1740287438339,-512.8391517,0.00010958,2]
[354145641,1740287438347,-555.09848677,0.00010958,2]
[354145642,1740287438357,-500.0,0.00010958,2]
[354145643,1740287438366,-500.0,0.00010958,2]
[354145644,1740287438375,-500.0,0.00010958,2]
[354145645,1740287438384,-500.0,0.00010958,2]
[354145646,1740287438394,-500.0,0.00010958,2]
[354145647,1740287438403,-500.0,0.00010958,2]
[354145648,1740287438412,-500.0,0.00010958,2]
[354145649,1740287438421,-386.74994052,0.00010958,2]
[354145650,1740287438430,-503.03029212,0.00010958,2]
[354145651,1740287438440,-504.51760109,0.00010958,2]
[354145652,1740287438449,-503.42848739,0.00010958,2]
[354145653,1740287438458,-500.0,0.00010958,2]
[354145654,1740287438467,-502.20860761,0.00010958,2]
[354145655,1740287438476,-500.0,0.00010958,2]
[354145656,1740287438485,-500.0,0.00010958,2]
[354145657,1740287438494,-500.0,0.00010958,2]
[354145659,1740287438503,-500.0,0.00010958,2]
[354145661,1740287438512,-524.0243076,0.00010958,2]
[354145663,1740287438521,-500.0,0.00010958,2]
[354145665,1740287438530,-500.0,0.00010958,2]
[354145667,1740287438539,-609.34598419,0.00010958,2]
[354145669,1740287438549,-500.0,0.00010958,2]
[354145671,1740287438559,-500.0,0.00010958,2]
[354145673,1740287438568,-500.66545703,0.00010958,2]